lending/lending_fUSD_20250114
["ID","MTS","AMOUNT","RATE_DAILY","PERIOD"]
[348857244,1736817042787,-500.0,9.886e-05,2]
[348857245,1736817042797,-500.0,9.886e-05,2]
[348857246,1736817042806,-500.0,9.886e-05,2]
[348857247,1736817042816,-500.0,9.886e-05,2]
[348857248,1736817042825,-500.0,9.886e-05,2]
[348857249,1736817042835,-500.0,9.886e-05,2]
[348857250,1736817042844,-500.0,9.886e-05,2]
[348857251,1736817042853,-500.0,9.886e-05,2]
[348857252,1736817042862,-714.2,9.886e-05,2]
[348857253,1736817042871,-500.0,9.886e-05,2]
[348857254,1736817042880,-500.0,9.886e-05,2]
[348857255,1736817042890,-500.0,9.886e-05,2]
[348857256,1736817042899,-500.0,9.886e-05,2]
[348857257,1736817042908,-1686.17,9.886e-05,2]
[348857259,1736817042917,-500.0,9.886e-05,2]
[348857260,1736817042926,-500.0,9.886e-05,2]
[348857261,1736817042935,-500.0,9.886e-05,2]
[348857262,1736817042944,-500.0,9.886e-05,2]
[348857263,1736817042953,-500.0,9.886e-05,2]
[348857264,1736817042962,-500.0,9.886e-05,2]
[348857265,1736817042971,-500.0,9.886e-05,2]
[348857266,1736817042982,-500.0,9.886e-05,2]
[348857267,1736817042992,-500.0,9.886e-05,2]
[348857268,1736817043001,-500.0,9.886e-05,2]
[348857269,1736817043011,-500.0,9.886e-05,2]
[348857270,1736817043020,-500.0,9.886e-05,2]
[348857271,1736817043032,-500.0,9.886e-05,2]
[348857272,1736817043042,-500.0,9.886e-05,2]
[348857273,1736817043052,-500.0,9.886e-05,2]
[348857274,1736817043061,-500.0,9.886e-05,2]
[348857275,1736817043071,-170.08373119,9.886e-05,2]
[348857276,1736817043082,-500.0,9.886e-05,2]
[348857277,1736817043092,-500.0,9.886e-05,2]
[348857278,1736817043102,-500.0,9.886e-05,2]
[348857279,1736817043111,-500.0,9.886e-05,2]
[348857280,1736817043122,-500.0,9.886e-05,2]
[348857281,1736817043132,-500.0,9.886e-05,2]
[348857283,1736817043141,-500.0,9.886e-05,2]
[348857284,1736817043150,-500.0,9.886e-05,2]
[348857285,1736817043162,-500.0,9.886e-05,2]
[348857286,1736817043172,-500.0,9.886e-05,2]
[348857287,1736817043181,-348.02,9.886e-05,2]
[348857288,1736817043190,-500.0,9.886e-05,2]
[348857290,1736817043200,-500.0,9.886e-05,2]
[348857292,1736817043210,-636.24,9.886e-05,2]
[348857294,1736817043220,-3545.03,9.886e-05,2]
[348857295,1736817043229,-500.0,9.886e-05,2]
[348857296,1736817043239,-500.0,9.886e-05,2]
[348857297,1736817043250,-500.0,9.886e-05,2]
[348857298,1736817043260,-500.0,9.886e-05,2]
[348857299,1736817043270,-500.0,9.886e-05,2]
[348857300,1736817043280,-500.0,9.886e-05,2]
[348857301,1736817043290,-500.0,9.886e-05,2]
[348857302,1736817043301,-500.0,9.886e-05,2]
[348857303,1736817043316,-500.0,9.886e-05,2]
[348857304,1736817043326,-543.97,9.886e-05,2]
[348857305,1736817043335,-500.0,9.886e-05,2]
[348857306,1736817043345,-500.0,9.886e-05,2]
[348857307,1736817043355,-500.0,9.886e-05,2]
[348857308,1736817043364,-500.0,9.886e-05,2]
[348857309,1736817043373,-500.0,9.886e-05,2]
[348857310,1736817043383,-500.0,9.886e-05,2]
[348857311,1736817043393,-500.0,9.886e-05,2]
[348857312,1736817043402,-500.0,9.886e-05,2]
[348857313,1736817043412,-500.0,9.886e-05,2]
[348857314,1736817043421,-500.0,9.886e-05,2]
[348857315,1736817043430,-500.0,9.886e-05,2]
[348857316,1736817043440,-500.0,9.886e-05,2]
[348857317,1736817043450,-500.0,9.886e-05,2]
[348857318,1736817043459,-500.0,9.886e-05,2]
[348857319,1736817043469,-1291.43,9.886e-05,2]
[348857320,1736817043478,-500.0,9.886e-05,2]
[348857321,1736817043488,-500.0,9.886e-05,2]
[348857322,1736817043498,-500.0,9.886e-05,2]
[348857323,1736817043509,-500.0,9.886e-05,2]
[348857324,1736817043518,-500.0,9.886e-05,2]
[348857325,1736817043529,-500.0,9.886e-05,2]
[348857326,1736817043539,-331.18948965,9.886e-05,2]
[348857327,1736817043548,-500.0,9.886e-05,2]
[348857328,1736817043558,-500.0,9.886e-05,2]
[348857329,1736817043567,-500.0,9.886e-05,2]
[348857330,1736817043577,-585.66,9.886e-05,2]
[348857331,1736817043586,-500.0,9.886e-05,2]
[348857332,1736817043595,-500.0,9.886e-05,2]
[348857333,1736817043605,-500.0,9.886e-05,2]
[348857334,1736817043614,-500.0,9.886e-05,2]
[348857335,1736817043623,-500.0,9.886e-05,2]
[348857336,1736817043633,-500.0,9.886e-05,2]
[348857337,1736817043643,-2525.05,9.886e-05,2]
[348857338,1736817043652,-500.0,9.886e-05,2]
[348857339,1736817043663,-500.0,9.886e-05,2]
[348857340,1736817043672,-500.0,9.886e-05,2]
[348857341,1736817043682,-500.0,9.886e-05,2]
[348857342,1736817043692,-1502.38,9.886e-05,2]
[348857343,1736817043701,-500.0,9.886e-05,2]
[348857344,1736817043711,-500.0,9.886e-05,2]
[348857345,1736817043721,-1000.0,9.887e-05,2]
[348857346,1736817043730,-912.65,9.887e-05,2]
[348857347,1736817043740,-500.0,9.887e-05,2]
[348857348,1736817043750,-2061.03,9.887e-05,2]
[348857349,1736817043760,-500.0,9.887e-05,2]
[348857350,1736817043770,-1671.46,9.887e-05,2]
[348857351,1736817043782,-1311.77,9.887e-05,2]
[348857352,1736817043792,-1648.92,9.887e-05,2]
[348857353,1736817043801,-1071.2,9.887e-05,2]
[348857354,1736817043812,-5220.0714,9.9e-05,2]
[348857355,1736817043822,-500.0,9.973e-05,2]
[348857356,1736817043832,-524.73,9.992e-05,2]
[348857357,1736817043842,-919.08,9.999e-05,2]
[348857358,1736817043852,-1412.96,9.999e-05,2]
[348857359,1736817043861,-1450.61,9.999e-05,2]
[348857360,1736817043871,-1506.73,9.999e-05,2]
[348857361,1736817043881,-1537.9,9.999e-05,2]
[348857362,1736817043891,-3396.48,9.999e-05,2]
[348857363,1736817043900,-1495.52,9.999e-05,2]
[348857364,1736817043909,-2312.71,9.999e-05,2]
[348857365,1736817043919,-1183.25,9.999e-05,2]
[348857366,1736817043929,-1327.47,9.999e-05,2]
[348857367,1736817043939,-500.0,9.999e-05,2]
[348857368,1736817043948,-500.0,9.999e-05,2]
[348857369,1736817043957,-892.23,9.999e-05,2]
[348857370,1736817043967,-1497.57,9.999e-05,2]
[348857371,1736817043976,-880.15,9.999e-05,2]
[348857372,1736817043986,-982.84,9.999e-05,2]
[348857373,1736817043994,-844.96,9.999e-05,2]
[348857374,1736817044004,-500.0,9.999e-05,2]
[348857375,1736817044013,-1080.16,9.999e-05,2]
[348857376,1736817044023,-747.69,9.999e-05,2]
[348857377,1736817044033,-500.0,9.999e-05,2]
[348857378,1736817044043,-1747.76,9.999e-05,2]
[348857379,1736817044053,-857.03,9.999e-05,2]
[348857380,1736817044063,-1447.12,9.999e-05,2]
[348857381,1736817044074,-2068.42,9.999e-05,2]
[348857382,1736817044088,-1527.9,9.999e-05,2]
[348857383,1736817044288,-2284.51,9.999e-05,2]
[348857384,1736817044298,-1913.75,9.999e-05,2]
[348857385,1736817044309,-1246.07,9.999e-05,2]
[348857386,1736817044319,-3364.42,9.999e-05,2]
[348857387,1736817044329,-1046.0,0.0001,2]
[348857388,1736817044339,-1736558.29632682,0.0001,2]
[348857389,1736817044362,-996.8440665,0.0001,2]
[348857390,1736817044395,-500.0,9.999e-05,2]
[348857391,1736817044405,-105989.03400009,0.0001,2]
[348857392,1736817044417,-252.29126814,0.0001,2]
[348857393,1736817044428,-363.60613795,0.0001,2]
[348857394,1736817044482,-6080.71885694,0.0001,2]
[348857395,1736817044494,-252.5553639,0.0001,2]
[348857396,1736817044822,-485.28896053,9.803e-05,2]
[348857397,1736817044862,-14.71103947,9.803e-05,2]
[348857398,1736817044871,-500.0,9.805e-05,2]
[348857399,1736817044881,-454.98896053,9.999e-05,2]
[348857400,1736817045370,-643.3159777,9.822e-05,2]
[348857401,1736817045382,-448.4620223,9.822e-05,2]
[348857402,1736817045392,-45.01103947,9.999e-05,2]
[348857403,1736817045401,-333.16303539,9.999e-05,2]
[348857404,1736817045413,-166.83696461,9.999e-05,2]
[348857405,1736817045422,-478.28303539,9.999e-05,2]
[348857406,1736817045439,-21.71696461,9.999e-05,2]
[348857407,1736817045448,-500.0,9.999e-05,2]
[348857408,1736817045457,-500.0,9.999e-05,2]
[348857409,1736817045467,-500.0,9.999e-05,2]
[348857410,1736817045476,-500.0,9.999e-05,2]
[348857411,1736817045487,-500.0,9.999e-05,2]
[348857412,1736817045496,-307.22187891,9.999e-05,2]
[348857413,1736817045505,-2322312.9108605,0.0001,2]
[348857414,1736817045517,-651.34079836,0.0001,2]
[348857415,1736817045535,-296.13443335,0.0001,2]
[348857416,1736817045545,-296.21242944,0.0001,2]
[348857417,1736817045557,-3713.11158809,0.0001,2]
[348857418,1736817045568,-4200.04995,0.0001,2]
[348857420,1736817046029,-437.23,9.589e-05,2]
[348857421,1736817046040,-4275.86852351,0.0001,2]
[348857422,1736817046077,-3404.81885294,0.0001,2]
[348857423,1736817046090,-834.45637505,0.0001,2]
[348857424,1736817046101,-18566.55176146,0.0001,2]
[348857425,1736817046116,-5773.08,0.0001,2]
[348857426,1736817046212,-49516.89251067,0.0001,2]
[348857445,1736817192845,500.0,0.00022235,120]
[348857446,1736817196169,2000.0,0.00022235,120]
[348857447,1736817220757,200.0,0.00022235,120]
[348857452,1736817655655,1857.0,0.00023,120]
[348857454,1736817772834,604.09,8.219e-05,2]
[348857455,1736817791435,500.0,0.00023,120]
[348857456,1736817794584,2000.0,0.00023,120]
[348857457,1736817820103,200.0,0.00023,120]
[348857459,1736818027396,2270.86309653,0.00023,120]
[348857489,1736818232543,-242.21,8.901e-05,2]
[348857490,1736818232554,-167.6722205,8.943e-05,2]
[348857491,1736818232566,-352.3377795,8.943e-05,2]
[348857492,1736818232576,-250.0,8.975e-05,2]
[348857493,1736818232588,-1772.94177823,8.975e-05,2]
[348857494,1736818232600,-130.81129791,8.975e-05,2]
[348857496,1736818232611,-2484.16327992,8.975e-05,2]
[348857498,1736818232622,-3653.74999986,8.975e-05,2]
[348857499,1736818232635,-713.21672022,8.975e-05,2]
[348857500,1736818232645,-163.03,9.02e-05,2]
[348857501,1736818232654,-110.10974816,9.022e-05,2]
[348857502,1736818232700,-189.89025184,9.022e-05,2]
[348857503,1736818232711,-884.11154572,9.023e-05,2]
[348857504,1736818232723,-115.88845428,9.023e-05,2]
[348857505,1736818232733,-250.0,9.023e-05,2]
[348857506,1736818232742,-250.0,9.067e-05,2]
[348857507,1736818232752,-510.6,9.082e-05,2]
[348857508,1736818232763,-437.23,9.178e-05,2]
[348857509,1736818232772,-671.8276918,9.178e-05,2]
[348857511,1736818232784,-308.3623082,9.178e-05,2]
[348857513,1736818232794,-180.534,9.5e-05,2]
[348857515,1736818232804,-416.55890468,9.704e-05,2]
[348857517,1736818232816,-583.44109532,9.704e-05,2]
[348857519,1736818232826,-500.0,9.774e-05,2]
[348857521,1736818232836,-68.10903283,9.802e-05,2]
[348857523,1736818232848,-256.7011023,9.802e-05,2]
[348857525,1736818232860,-339.624,9.802e-05,2]
[348857528,1736818232871,-1719.31786487,9.802e-05,2]
[348857530,1736818232881,-163.705,9.802e-05,2]
[348857532,1736818232890,-3532.51738473,9.802e-05,2]
[348857534,1736818232899,-150.0,9.802e-05,2]
[348857535,1736818232909,-500.0,9.803e-05,2]
[348857537,1736818232919,-500.0,9.803e-05,2]
[348857538,1736818232929,-500.0,9.803e-05,2]
[348857539,1736818232938,-500.0,9.803e-05,2]
[348857540,1736818232948,-500.0,9.803e-05,2]
[348857541,1736818232957,-517.04,9.803e-05,2]
[348857542,1736818232967,-500.0,9.803e-05,2]
[348857543,1736818232976,-533.08,9.803e-05,2]
[348857544,1736818232986,-500.0,9.803e-05,2]
[348857545,1736818232997,-417.95171296,9.803e-05,2]
[348857546,1736818233008,-82.04828704,9.803e-05,2]
[348857547,1736818233017,-262.16013097,9.803e-05,2]
[348857548,1736818233030,-401.52986903,9.803e-05,2]
[348857549,1736818233040,-133.51099185,9.803e-05,2]
[348857550,1736818233051,-366.48900815,9.803e-05,2]
[348857551,1736818233060,-353.19175187,9.803e-05,2]
[348857552,1736818233117,-146.80824813,9.803e-05,2]
[348857553,1736818233127,-107.65175187,9.803e-05,2]
[348857554,1736818233138,-286.14586188,9.803e-05,2]
[348857555,1736818233148,-500.0,9.803e-05,2]
[348857556,1736818233158,-513.68,9.803e-05,2]
[348857557,1736818233167,-156.72655628,9.803e-05,2]
[348857558,1736818233177,-500.0,9.803e-05,2]
[348857559,1736818233186,-228.98265517,9.803e-05,2]
[348857560,1736818233197,-271.01734483,9.803e-05,2]
[348857561,1736818233207,-500.0,9.803e-05,2]
[348857562,1736818233217,-500.0,9.803e-05,2]
[348857563,1736818233227,-500.0,9.803e-05,2]
[348857564,1736818233237,-500.0,9.803e-05,2]
[348857565,1736818233246,-1078.94,9.803e-05,2]
[348857566,1736818233256,-500.0,9.803e-05,2]
[348857567,1736818233265,-350.04265517,9.803e-05,2]
[348857568,1736818233277,-149.95734483,9.803e-05,2]
[348857569,1736818233287,-131.33254513,9.803e-05,2]
[348857570,1736818233298,-382.515,9.803e-05,2]
[348857571,1736818233310,-278.06409137,9.803e-05,2]
[348857572,1736818233322,-163.5583635,9.803e-05,2]
[348857573,1736818233331,-500.0,9.803e-05,2]
[348857574,1736818233341,-500.0,9.803e-05,2]
[348857575,1736818233353,-500.0,9.803e-05,2]
[348857576,1736818233363,-500.0,9.803e-05,2]
[348857577,1736818233374,-500.0,9.803e-05,2]
[348857578,1736818233383,-500.0,9.803e-05,2]
[348857579,1736818233393,-538.83,9.803e-05,2]
[348857580,1736818233403,-500.0,9.803e-05,2]
[348857581,1736818233413,-500.0,9.803e-05,2]
[348857582,1736818233423,-500.0,9.803e-05,2]
[348857583,1736818233435,-500.0,9.803e-05,2]
[348857584,1736818233445,-500.0,9.803e-05,2]
[348857585,1736818233455,-1213.59373014,9.803e-05,2]
[348857586,1736818233467,-249.88626986,9.803e-05,2]
[348857587,1736818233477,-369.64919249,9.803e-05,2]
[348857588,1736818238138,-411.3523,9.785e-05,2]
[348857589,1736818238148,-130.35080751,9.803e-05,2]
[348857590,1736818238157,-34.11831217,9.803e-05,2]
[348857591,1736818238169,-465.88168783,9.803e-05,2]
[348857592,1736818238178,-34.11831217,9.803e-05,2]
[348857593,1736818238190,-465.88168783,9.803e-05,2]
[348857594,1736818238201,-283.37995161,9.803e-05,2]
[348857595,1736818238212,-216.62004839,9.803e-05,2]
[348857596,1736818238234,-33.86995161,9.803e-05,2]
[348857597,1736818238301,-466.13004839,9.803e-05,2]
[348857598,1736818238311,-500.0,9.803e-05,2]
[348857599,1736818238320,-500.0,9.803e-05,2]
[348857600,1736818238329,-1509.22,9.803e-05,2]
[348857601,1736818238339,-754.68,9.803e-05,2]
[348857602,1736818238348,-1571.96,9.803e-05,2]
[348857603,1736818238358,-694.21,9.803e-05,2]
[348857604,1736818238367,-453.39702974,9.803e-05,2]
[348857605,1736818238378,-500.0,9.803e-05,2]
[348857606,1736818238390,-842.61297026,9.803e-05,2]
[348857607,1736818238399,-500.0,9.803e-05,2]
[348857608,1736818238409,-500.0,9.803e-05,2]
[348857609,1736818238419,-644.68,9.803e-05,2]
[348857610,1736818238433,-500.0,9.803e-05,2]
[348857617,1736818238666,-500.0,9.803e-05,2]
[348857618,1736818238676,-500.0,9.803e-05,2]
[348857619,1736818238685,-580.69,9.803e-05,2]
[348857620,1736818238694,-1246.07,9.803e-05,2]
[348857621,1736818238703,-500.0,9.803e-05,2]
[348857622,1736818238712,-1480.64,9.803e-05,2]
[348857623,1736818238721,-500.0,9.803e-05,2]
[348857624,1736818238730,-1592.73,9.803e-05,2]
[348857625,1736818238739,-618.36,9.803e-05,2]
[348857626,1736818238748,-2709.94,9.803e-05,2]
[348857627,1736818238758,-2117.43,9.803e-05,2]
[348857628,1736818238767,-500.0,9.803e-05,2]
[348857629,1736818238776,-500.0,9.803e-05,2]
[348857630,1736818238785,-500.0,9.803e-05,2]
[348857631,1736818238794,-2169.86,9.803e-05,2]
[348857632,1736818238803,-1584.44,9.803e-05,2]
[348857633,1736818238814,-500.0,9.803e-05,2]
[348857634,1736818238824,-500.0,9.803e-05,2]
[348857635,1736818238833,-500.0,9.803e-05,2]
[348857636,1736818238843,-3548.95,9.803e-05,2]
[348857637,1736818238852,-483.18797537,9.803e-05,2]
[348857638,1736818238864,-1072.83202463,9.803e-05,2]
[348857639,1736818238873,-500.0,9.803e-05,2]
[348857640,1736818238883,-713.17,9.803e-05,2]
[348857641,1736818238892,-1981.61,9.803e-05,2]
[348857642,1736818238901,-969.5,9.803e-05,2]
[348857643,1736818238910,-500.0,9.803e-05,2]
[348857644,1736818238920,-1684.92,9.803e-05,2]
[348857645,1736818238929,-534.38,9.803e-05,2]
[348857646,1736818238939,-2307.93,9.803e-05,2]
[348857647,1736818238948,-3460.78,9.803e-05,2]
[348857648,1736818238957,-500.0,9.803e-05,2]
[348857649,1736818238966,-596.5,9.803e-05,2]
[348857650,1736818238975,-503.89,9.803e-05,2]
[348857651,1736818238985,-8403.01,9.803e-05,2]
[348857652,1736818238994,-3785.67,9.803e-05,2]
[348857653,1736818239004,-500.0,9.803e-05,2]
[348857654,1736818239013,-709.18,9.803e-05,2]
[348857655,1736818239022,-500.0,9.803e-05,2]
[348857656,1736818239032,-500.0,9.803e-05,2]
[348857657,1736818239042,-1230.26,9.803e-05,2]
[348857658,1736818239051,-500.0,9.803e-05,2]
[348857659,1736818239061,-500.0,9.803e-05,2]
[348857660,1736818239070,-500.0,9.803e-05,2]
[348857661,1736818239079,-813.13448473,9.803e-05,2]
[348857662,1736818239091,-106.64551527,9.803e-05,2]
[348857663,1736818239100,-1186.89,9.803e-05,2]
[348857664,1736818239109,-546.86940628,9.803e-05,2]
[348857665,1736818239121,-841.11059372,9.803e-05,2]
[348857666,1736818239130,-837.25,9.803e-05,2]
[348857667,1736818239139,-326.20741663,9.884e-05,2]
[348857673,1736818240141,-173.79258337,9.884e-05,2]
[348857674,1736818240151,-159.79260387,9.884e-05,2]
[348857675,1736818240163,-340.20739613,9.884e-05,2]
[348857676,1736818240174,-500.0,9.885e-05,2]
[348857677,1736818240183,-260.60960387,9.885e-05,2]
[348857678,1736818240194,-317.96039613,9.885e-05,2]
[348857679,1736818240204,-500.0,9.885e-05,2]
[348857680,1736818240213,-500.0,9.885e-05,2]
[348857681,1736818240222,-500.0,9.885e-05,2]
[348857682,1736818240231,-500.0,9.885e-05,2]
[348857683,1736818240241,-815.25,9.885e-05,2]
[348857684,1736818240250,-589.57,9.885e-05,2]
[348857685,1736818240259,-500.0,9.885e-05,2]
[348857686,1736818240268,-640.41,9.885e-05,2]
[348857687,1736818240278,-500.0,9.885e-05,2]
[348857688,1736818240287,-500.0,9.885e-05,2]
[348857689,1736818240296,-500.0,9.885e-05,2]
[348857690,1736818240307,-500.0,9.885e-05,2]
[348857691,1736818240319,-15.58872208,9.885e-05,2]
[348857692,1736818240358,-484.41127792,9.885e-05,2]
[348857693,1736818240367,-500.0,9.885e-05,2]
[348857694,1736818240376,-579.96293605,9.885e-05,2]
[348857695,1736818240388,-414.84706395,9.885e-05,2]
[348857696,1736818240397,-500.0,9.885e-05,2]
[348857697,1736818240407,-500.0,9.885e-05,2]
[348857698,1736818240417,-500.0,9.885e-05,2]
[348857699,1736818240430,-500.0,9.885e-05,2]
[348857700,1736818240440,-500.0,9.885e-05,2]
[348857701,1736818240450,-500.0,9.885e-05,2]
[348857702,1736818240459,-500.0,9.885e-05,2]
[348857703,1736818240472,-834.23,9.885e-05,2]
[348857704,1736818240482,-750.16,9.885e-05,2]
[348857705,1736818240492,-778.5,9.885e-05,2]
[348857706,1736818240503,-747.21,9.885e-05,2]
[348857707,1736818240512,-500.0,9.885e-05,2]
[348857708,1736818240523,-441.60132396,9.885e-05,2]
[348857709,1736818240532,-500.0,9.885e-05,2]
[348857710,1736818240541,-500.0,9.885e-05,2]
[348857711,1736818240550,-500.0,9.885e-05,2]
[348857712,1736818240561,-500.0,9.885e-05,2]
[348857713,1736818240571,-500.0,9.885e-05,2]
[348857714,1736818240580,-500.0,9.885e-05,2]
[348857715,1736818240589,-500.0,9.885e-05,2]
[348857716,1736818240598,-500.0,9.885e-05,2]
[348857717,1736818240607,-500.0,9.885e-05,2]
[348857718,1736818240616,-508.66039595,9.885e-05,2]
[348857719,1736818240626,-1692.23,9.885e-05,2]
[348857720,1736818240635,-500.0,9.885e-05,2]
[348857721,1736818240644,-500.0,9.885e-05,2]
[348857722,1736818240654,-844.67,9.885e-05,2]
[348857723,1736818240663,-500.0,9.885e-05,2]
[348857724,1736818240672,-500.0,9.885e-05,2]
[348857725,1736818240681,-500.0,9.885e-05,2]
[348857726,1736818240690,-500.0,9.885e-05,2]
[348857727,1736818240699,-786.81,9.885e-05,2]
[348857728,1736818240708,-500.0,9.885e-05,2]
[348857729,1736818240717,-871.37,9.885e-05,2]
[348857730,1736818240725,-844.56,9.885e-05,2]
[348857731,1736818240734,-500.0,9.885e-05,2]
[348857732,1736818240743,-500.0,9.885e-05,2]
[348857733,1736818240753,-500.0,9.885e-05,2]
[348857734,1736818240762,-899.42,9.885e-05,2]
[348857735,1736818240771,-500.0,9.885e-05,2]
[348857737,1736818240780,-500.0,9.885e-05,2]
[348857739,1736818240788,-500.0,9.885e-05,2]
[348857741,1736818240797,-500.0,9.885e-05,2]
[348857743,1736818240806,-851.74,9.885e-05,2]
[348857745,1736818240819,-500.0,9.885e-05,2]
[348857746,1736818240829,-778.67,9.885e-05,2]
[348857747,1736818240838,-500.0,9.885e-05,2]
[348857748,1736818240849,-500.0,9.885e-05,2]
[348857749,1736818240858,-500.0,9.885e-05,2]
[348857750,1736818240867,-500.0,9.885e-05,2]
[348857751,1736818240876,-500.0,9.885e-05,2]
[348857752,1736818240885,-500.0,9.885e-05,2]
[348857753,1736818240894,-1358.51,9.885e-05,2]
[348857754,1736818240903,-675.2,9.885e-05,2]
[348857755,1736818240912,-500.0,9.885e-05,2]
[348857756,1736818240921,-500.0,9.885e-05,2]
[348857757,1736818240930,-500.0,9.885e-05,2]
[348857758,1736818240939,-2391.48,9.885e-05,2]
[348857759,1736818240948,-500.0,9.885e-05,2]
[348857760,1736818240957,-1416.11,9.885e-05,2]
[348857761,1736818240966,-651.93,9.885e-05,2]
[348857762,1736818240975,-675.0,9.885e-05,2]
[348857763,1736818240984,-500.0,9.885e-05,2]
[348857764,1736818240993,-519.29,9.885e-05,2]
[348857765,1736818241002,-986.81,9.885e-05,2]
[348857766,1736818241011,-500.0,9.885e-05,2]
[348857767,1736818241020,-728.54,9.885e-05,2]
[348857768,1736818241029,-500.0,9.885e-05,2]
[348857769,1736818241039,-500.0,9.885e-05,2]
[348857770,1736818241048,-500.0,9.885e-05,2]
[348857771,1736818241057,-531.35,9.885e-05,2]
[348857772,1736818241071,-500.0,9.885e-05,2]
[348857773,1736818241079,-628.5,9.885e-05,2]
[348857774,1736818241088,-572.6,9.885e-05,2]
[348857775,1736818241098,-1790.72982333,9.885e-05,2]
[348857776,1736818241110,-284.24017667,9.885e-05,2]
[348857777,1736818241120,-1864.845961,9.885e-05,2]
[348857778,1736818241130,-500.0,9.885e-05,2]
[348857779,1736818241139,-1123.39,9.885e-05,2]
[348857780,1736818241148,-2378.72,9.885e-05,2]
[348857781,1736818241158,-1131.25,9.885e-05,2]
[348857782,1736818241167,-500.0,9.885e-05,2]
[348857783,1736818241176,-2165.3,9.885e-05,2]
[348857784,1736818241186,-500.0,9.885e-05,2]
[348857785,1736818241195,-1853.576663,9.885e-05,2]
[348857786,1736818241204,-5854.72,9.885e-05,2]
[348857787,1736818241213,-158.587777,9.885e-05,2]
[348857788,1736818241222,-878.06,9.885e-05,2]
[348857789,1736818241232,-860.73,9.885e-05,2]
[348857790,1736818241241,-714.24,9.885e-05,2]
[348857791,1736818241251,-500.0,9.885e-05,2]
[348857792,1736818241261,-804.2,9.885e-05,2]
[348857793,1736818241270,-500.0,9.885e-05,2]
[348857794,1736818241279,-500.0,9.885e-05,2]
[348857795,1736818241288,-500.0,9.885e-05,2]
[348857796,1736818241298,-1076.08,9.885e-05,2]
[348857797,1736818241307,-500.0,9.885e-05,2]
[348857798,1736818241323,-712.98,9.885e-05,2]
[348857799,1736818241332,-500.0,9.885e-05,2]
[348857800,1736818241341,-500.0,9.885e-05,2]
[348857801,1736818241350,-2146.51,9.885e-05,2]
[348857802,1736818241360,-2307.21,9.885e-05,2]
[348857803,1736818241370,-500.0,9.885e-05,2]
[348857804,1736818241380,-500.0,9.885e-05,2]
[348857805,1736818241389,-2901.78,9.885e-05,2]
[348857806,1736818241398,-500.0,9.885e-05,2]
[348857807,1736818241408,-500.0,9.885e-05,2]
[348857808,1736818241418,-5359.39,9.885e-05,2]
[348857809,1736818241433,-1681.91,9.885e-05,2]
[348857810,1736818241443,-2957.98,9.885e-05,2]
[348857811,1736818241452,-500.0,9.885e-05,2]
[348857812,1736818241461,-1700.37,9.885e-05,2]
[348857813,1736818241472,-3777.27,9.885e-05,2]
[348857814,1736818241483,-500.0,9.885e-05,2]
[348857815,1736818241492,-1075.15,9.885e-05,2]
[348857816,1736818241502,-500.0,9.885e-05,2]
[348857817,1736818241512,-500.0,9.885e-05,2]
[348857818,1736818241521,-500.0,9.885e-05,2]
[348857819,1736818241531,-2706.96,9.885e-05,2]
[348857820,1736818241540,-500.0,9.885e-05,2]
[348857821,1736818241549,-1123.07,9.885e-05,2]
[348857822,1736818241558,-500.0,9.885e-05,2]
[348857823,1736818241571,-3562.2,9.885e-05,2]
[348857824,1736818241580,-521.3,9.885e-05,2]
[348857825,1736818241590,-500.0,9.885e-05,2]
[348857826,1736818241598,-500.0,9.885e-05,2]
[348857827,1736818241608,-500.0,9.885e-05,2]
[348857828,1736818241617,-500.0,9.885e-05,2]
[348857829,1736818241627,-500.0,9.885e-05,2]
[348857830,1736818241636,-505.61120148,9.885e-05,2]
[348857831,1736818241646,-1653.68,9.885e-05,2]
[348857832,1736818241655,-804.99,9.885e-05,2]
[348857833,1736818241664,-500.0,9.885e-05,2]
[348857834,1736818241673,-504.07874189,9.885e-05,2]